bitfinex/quotes_SOLUSD_20250403
["timestamp","ask_amount","ask_price","bid_price","bid_amount"]
[1743716626791,51.71,116.33,116.3,16.84828991]
[1743716627091,0.14216157,116.33,116.31,16.84828991]
[1743716627290,6.41688341,116.32,116.31,16.84828991]
[1743716628689,0.14216157,116.36,116.32,30.0893]
[1743716628894,0.14216157,116.36,116.33,24.34828991]
[1743716629878,6.4110973,116.35,116.33,24.34828991]
[1743716630678,6.4110973,116.35,116.34,25.44368991]
[1743716630878,0.14216157,116.37,116.34,25.44368991]
[1743716631894,6.40610125,116.36,116.34,25.44368991]
[1743716632796,6.40610125,116.36,116.34,8.5954]
[1743716633096,0.14216157,116.37,116.34,8.5954]
[1743716633298,0.14216157,116.37,116.34,25.44368991]
[1743716633703,0.14216157,116.37,116.34,8.5954]
[1743716633904,1.5287,116.38,116.34,25.44368991]
[1743716634281,0.14216157,116.38,116.34,25.44368991]
[1743716634692,6.40061504,116.37,116.34,25.44368991]
[1743716635886,0.14216157,116.38,116.34,25.44368991]
[1743716636400,16.84828991,116.39,116.34,25.44368991]
[1743716636610,0.14216157,116.38,116.35,16.84828991]
[1743716636988,6.5387591,116.38,116.35,16.84828991]
[1743716638188,0.14216157,116.38,116.35,16.84828991]
[1743716638610,0.14216157,116.38,116.36,8.594]
[1743716640212,18.43198991,116.4,116.36,8.594]
[1743716640402,16.84828991,116.42,116.37,16.84828991]
[1743716640606,16.99045148,116.41,116.38,8.5925]
[1743716641110,1.5837,116.43,116.38,8.5925]
[1743716641307,0.14216157,116.42,116.38,8.5925]
[1743716641497,0.14216157,116.42,116.38,25.44078991]
[1743716642018,0.42648471,116.42,116.38,25.44078991]
[1743716642910,0.42648471,116.42,116.38,8.5925]
[1743716642911,0.14216157,116.4,116.38,8.5925]
[1743716643092,0.14216157,116.4,116.36,16.84828991]
[1743716643286,0.14216157,116.4,116.37,25.44118991]
[1743716644008,0.28432314,116.42,116.38,16.84828991]
[1743716644310,0.42648471,116.42,116.39,16.84828991]
[1743716645016,0.42648471,116.42,116.37,21.4832]
[1743716645216,17.27477462,116.42,116.36,8.594]
[1743716645419,17.27477462,116.42,116.37,16.84828991]
[1743716646101,0.42648471,116.42,116.37,16.84828991]
[1743716647289,0.42648471,116.42,116.38,8.5925]
[1743716647495,0.42648471,116.42,116.38,25.44078991]
[1743716651506,0.42648471,116.42,116.38,46.92208991]
[1743716656391,0.42648471,116.42,116.38,30.0738]
[1743716656598,0.42648471,116.42,116.38,46.92208991]
[1743716657713,269.55710221,116.46,116.38,46.92208991]
[1743716657714,43.016,116.48,116.4,16.84828991]
[1743716657902,16.99045148,116.47,116.41,16.84828991]
[1743716658096,0.14216157,116.44,116.41,16.84828991]
[1743716658397,0.14216157,116.44,116.4,25.43928991]
[1743716658715,0.14216157,116.45,116.41,16.84828991]
[1743716658918,0.42648471,116.45,116.41,16.84828991]
[1743716659304,52.13648471,116.45,116.41,16.84828991]
[1743716659515,0.14216157,116.45,116.42,16.84828991]
[1743716659814,0.14216157,116.47,116.43,24.36828991]
[1743716660117,0.42648471,116.47,116.43,24.36828991]
[1743716660517,0.28432314,116.47,116.44,8.5881]
[1743716660694,0.14216157,116.47,116.44,8.5881]
[1743716660899,0.42648471,116.47,116.44,8.5881]
[1743716662300,0.14216157,116.47,116.44,25.43638991]
[1743716663912,0.42648471,116.47,116.44,8.5881]
[1743716664702,77.57077462,116.47,116.43,16.1084]
[1743716665842,97.57077462,116.47,116.42,8.5893]
[1743716666123,0.42648471,116.45,116.41,8.5901]
[1743716668416,9.01388471,116.45,116.41,8.5901]
[1743716668731,60.72388471,116.45,116.41,8.5901]
[1743716670227,86.57388471,116.45,116.41,8.5901]
[1743716670435,60.72388471,116.45,116.41,8.5901]
[1743716671132,52.13648471,116.45,116.41,8.5901]
[1743716671634,52.13648471,116.45,116.41,25.43838991]
[1743716672021,0.14216157,116.45,116.42,16.84828991]
[1743716672225,51.71,116.47,116.43,16.84828991]
[1743716672425,0.14216157,116.46,116.44,16.84828991]
[1743716672726,6.52761502,116.46,116.44,16.84828991]
[1743716673540,0.14216157,116.46,116.45,8.5873]
[1743716674809,6.38772936,116.47,116.45,8.5873]
[1743716675629,0.14216157,116.47,116.45,8.5873]
[1743716676430,0.14216157,116.48,116.45,8.5873]
[1743716678732,0.14216157,116.48,116.44,8.5881]
[1743716679835,0.14216157,116.48,116.44,25.43638991]
[1743716681740,0.14216157,116.48,116.45,16.84828991]
[1743716682842,0.14216157,116.48,116.46,8.5866]
[1743716684338,0.42648471,116.51,116.47,16.84828991]
[1743716684634,0.14216157,116.53,116.5,16.84828991]
[1743716684842,0.14216157,116.53,116.51,8.5829]
[1743716685341,6.40135671,116.52,116.51,8.5829]
[1743716686359,0.14216157,116.53,116.51,8.5829]
[1743716691550,68.98477462,116.54,116.5,8.5834]
[1743716700955,94.83477462,116.54,116.5,8.5834]
[1743716701161,77.56557462,116.54,116.5,8.5834]
[1743716702065,0.14216157,116.52,116.5,8.5834]
[1743716706667,0.14216157,116.51,116.42,6.572]
[1743716706972,0.14216157,116.46,116.42,8.5895]
[1743716707164,0.28432314,116.45,116.42,8.5895]
[1743716708056,0.28432314,116.45,116.42,25.43778991]
[1743716709143,51.85216157,116.46,116.42,25.43778991]
[1743716709357,0.14216157,116.47,116.45,16.84828991]
[1743716709660,0.14216157,116.47,116.44,25.43588991]
[1743716709867,0.14216157,116.48,116.45,16.84828991]
[1743716711354,0.14216157,116.48,116.46,8.5866]
[1743716713473,0.14216157,116.48,116.44,46.90658991]
[1743716722378,52.13648471,116.49,116.44,46.90658991]
[1743716726376,68.98477462,116.49,116.44,46.90658991]
[1743716727378,17.27477462,116.49,116.44,46.90658991]
[1743716734389,0.28432314,116.49,116.44,46.90658991]
[1743716736189,0.14216157,116.48,116.44,46.90658991]
[1743716736896,0.42648471,116.48,116.44,46.90658991]
[1743716739288,0.42648471,116.48,116.44,30.0583]
[1743716739467,0.42648471,116.48,116.42,30.0634]
[1743716739675,0.42648471,116.48,116.43,16.84828991]
[1743716739870,17.27477462,116.48,116.42,46.91168991]
[1743716740274,0.14216157,116.46,116.42,46.91168991]
[1743716740573,0.14216157,116.46,116.42,30.0634]
[1743716741280,17.27477462,116.46,116.42,8.5895]
[1743716741686,0.42648471,116.46,116.42,8.5895]
[1743716743794,0.42648471,116.46,116.42,30.0634]
[1743716744592,0.42648471,116.46,116.42,46.91168991]
[1743716752404,0.42648471,116.46,116.42,30.0634]
[1743716752695,17.27477462,116.46,116.42,30.0634]
[1743716752893,0.28432314,116.44,116.42,30.0634]
[1743716753912,6.58642805,116.43,116.42,30.0634]
[1743716757906,9.80855669,116.43,116.42,30.0634]
[1743716761593,9.80855669,116.43,116.42,46.91168991]
[1743716762694,9.80855669,116.43,116.42,30.0634]
[1743716768316,6.58642805,116.43,116.42,30.0634]
[1743716768800,9.80861816,116.43,116.42,30.0634]
[1743716770827,9.80861816,116.43,116.42,8.5895]
[1743716773837,9.80861816,116.43,116.4,30.0681]
[1743716774008,9.80861816,116.43,116.41,16.84828991]
[1743716775029,6.44426648,116.42,116.41,16.84828991]
[1743716775401,6.58642805,116.42,116.4,30.0681]
[1743716775608,9.66645659,116.42,116.4,46.91638991]
[1743716775819,6.44426648,116.41,116.4,30.0681]
[1743716776029,6.44426648,116.41,116.4,46.91638991]
[1743716777308,9.66645659,116.41,116.4,46.91638991]
[1743716779424,9.66645659,116.41,116.4,30.0681]
[1743716779625,9.66645659,116.41,116.4,46.91638991]
[1743716789127,9.66645659,116.41,116.4,30.0681]
[1743716789514,9.66645659,116.41,116.4,46.91638991]
[1743716791237,5.659e-05,116.41,116.4,46.91638991]
[1743716792134,0.28437973,116.41,116.4,8.591]
[1743716792726,0.28432314,116.39,116.37,8.5932]
[1743716793119,0.28432314,116.39,116.37,25.44148991]
[1743716793517,0.28432314,116.39,116.37,8.5932]
[1743716796218,0.14216157,116.39,116.37,8.5932]
[1743716797245,0.14216157,116.39,116.36,8.594]
[1743716797420,20.14216157,116.39,116.36,8.594]
[1743716801130,0.14216157,116.37,116.35,8.5945]
[1743716801331,0.14216157,116.37,116.34,8.5951]
[1743716803744,18.79181043,116.35,116.33,8.596]
[1743716804046,35.64010034,116.35,116.33,8.596]
[1743716805042,51.71,116.34,116.31,8.5977]
[1743716805240,0.28432314,116.33,116.31,25.44598991]
[1743716805446,0.28432314,116.33,116.31,8.5977]
[1743716814240,0.14216157,116.35,116.31,46.94018991]
[1743716814447,0.42648471,116.35,116.32,16.84828991]
[1743716815441,0.28432314,116.35,116.32,16.84828991]
[1743716815837,0.28432314,116.35,116.33,8.5962]
[1743716822452,0.14216157,116.36,116.33,30.0867]
[1743716822643,0.28432314,116.36,116.33,46.93498991]
[1743716823235,0.42648471,116.37,116.33,46.93498991]
[1743716823635,6.41405759,116.36,116.33,46.93498991]
[1743716824029,9.62108639,116.36,116.33,46.93498991]
[1743716825359,9.62108639,116.35,116.33,46.93498991]
[1743716826037,9.62108639,116.35,116.34,16.84828991]
[1743716826233,0.42648471,116.37,116.34,16.84828991]
[1743716827537,6.43031798,116.36,116.34,16.84828991]
[1743716827738,6.43031798,116.36,116.33,38.33878991]
[1743716828143,6.43031798,116.36,116.33,46.93498991]
[1743716828350,9.64555547,116.36,116.33,46.93498991]
[1743716828847,6.43031798,116.35,116.33,46.93498991]
[1743716830159,17.27477462,116.37,116.33,46.93498991]
[1743716831359,6.43031656,116.36,116.33,46.93498991]
[1743716832555,3.21513584,116.35,116.33,30.0867]
[1743716832945,9.6454524,116.35,116.33,30.0867]
[1743716833756,6.43031656,116.35,116.33,30.0867]
[1743716834463,17.27477462,116.37,116.33,30.0867]
[1743716834857,0.42648471,116.37,116.33,30.0867]
[1743716835364,0.42648471,116.37,116.33,38.33878991]
[1743716835953,6.43021963,116.36,116.33,38.33878991]
[1743716836566,9.64540083,116.36,116.33,38.33878991]
[1743716837471,6.43021963,116.35,116.33,46.93498991]
[1743716837761,9.64540083,116.35,116.33,46.93498991]
[1743716838263,6.5723812,116.34,116.33,30.0867]
[1743716839165,9.7875624,116.34,116.33,30.0867]
[1743716839867,9.7875624,116.34,116.32,8.5967]
[1743716840745,6.43021963,116.33,116.32,8.5967]
[1743716842068,9.64540083,116.33,116.32,8.5967]
[1743716842753,9.7875624,116.33,116.32,8.5967]
[1743716842956,10.07188554,116.33,116.32,8.5967]
[1743716844361,0.14216157,116.32,116.31,8.5977]
[1743716845769,0.28432314,116.33,116.31,8.5977]
[1743716846773,0.28432314,116.33,116.31,16.84828991]
[1743716847479,0.28432314,116.33,116.3,38.34318991]
[1743716847774,6.43038166,116.32,116.3,38.34318991]
[1743716848679,6.43038166,116.32,116.3,46.94158991]
[1743716849260,0.28432314,116.33,116.31,16.84828991]
[1743716849753,0.14216157,116.36,116.32,16.84828991]
[1743716849965,0.14216157,116.37,116.32,16.84828991]
[1743716850167,0.42648471,116.37,116.32,16.84828991]
[1743716850351,0.14216157,116.37,116.32,16.84828991]
[1743716850565,0.42648471,116.37,116.32,16.84828991]
[1743716850766,0.42648471,116.37,116.33,30.0867]
[1743716850960,3.21464064,116.36,116.33,30.0867]
[1743716852267,3.21464064,116.35,116.33,30.0867]
[1743716852578,3.21464064,116.35,116.33,46.93498991]
[1743716853659,0.28432314,116.37,116.33,46.93498991]
[1743716853863,0.42648471,116.37,116.33,46.93498991]
[1743716855377,0.14216157,116.37,116.33,46.93498991]
[1743716855677,0.42648471,116.37,116.33,46.93498991]
[1743716855874,3.2141972,116.36,116.33,46.93498991]
[1743716856678,3.2141972,116.35,116.33,46.93498991]
[1743716857681,0.42648471,116.37,116.33,46.93498991]
[1743716858584,3.21416153,116.36,116.33,46.93498991]
[1743716858962,3.21416153,116.35,116.33,46.93498991]
[1743716859785,0.42648471,116.37,116.33,46.93498991]
[1743716860588,3.21460756,116.36,116.33,46.93498991]
[1743716861685,0.42648471,116.37,116.33,46.93498991]
[1743716863376,3.2143062,116.36,116.33,46.93498991]
[1743716864184,0.42648471,116.37,116.33,46.93498991]
[1743716868285,0.14216157,116.37,116.34,16.84828991]
[1743716870768,0.14216157,116.37,116.34,30.0828]
[1743716870970,0.14216157,116.37,116.34,46.93108991]
[1743716871472,0.14216157,116.37,116.35,16.84828991]
[1743716872982,0.14216157,116.37,116.36,8.594]
[1743716873797,1.5231,116.39,116.36,30.079]
[1743716874020,0.42648471,116.38,116.36,30.079]
[1743716879811,0.42648471,116.38,116.36,46.92728991]
[1743716881405,0.28432314,116.38,116.36,46.92728991]
[1743716882380,0.14216157,116.39,116.36,46.92728991]
[1743716882587,0.28432314,116.39,116.36,54.40728991]
[1743716882812,0.14216157,116.4,116.37,16.84828991]
[1743716882986,0.42648471,116.4,116.37,16.84828991]
[1743716883712,0.14216157,116.4,116.37,16.84828991]
[1743716884608,0.42648471,116.4,116.38,8.5925]
[1743716886784,52.06648471,116.4,116.38,8.5925]
[1743716887202,51.92432314,116.4,116.38,8.5925]
[1743716887603,0.14216157,116.4,116.38,8.5925]
[1743716887786,1.6372,116.42,116.38,46.92208991]
[1743716887988,0.42648471,116.42,116.39,16.84828991]
[1743716888686,0.28432314,116.42,116.39,16.84828991]
[1743716888906,0.14216157,116.42,116.39,16.84828991]
[1743716889107,0.14216157,116.42,116.4,24.32828991]
[1743716889309,0.14216157,116.42,116.41,8.5903]
[1743716889691,0.28432314,116.43,116.41,8.5903]
[1743716889895,0.28432314,116.44,116.41,8.5903]
[1743716890101,0.42648471,116.44,116.41,46.91438991]
[1743716890498,0.42648471,116.44,116.41,30.0661]
[1743716890898,17.27477462,116.44,116.41,30.0661]
[1743716893414,0.42648471,116.44,116.41,30.0661]
[1743716894112,0.14216157,116.44,116.41,46.91438991]
[1743716894912,0.14216157,116.44,116.42,16.84828991]
[1743716895613,0.14216157,116.44,116.43,8.5888]
[1743716895911,0.14216157,116.47,116.43,46.90918991]
[1743716896111,0.14216157,116.49,116.45,16.84828991]
[1743716896309,0.42648471,116.49,116.46,16.84828991]
[1743716896900,0.42648471,116.49,116.45,16.84828991]
[1743716897714,0.42648471,116.49,116.46,8.5866]
[1743716899330,17.27477462,116.49,116.46,8.5866]
[1743716899819,0.42648471,116.49,116.46,8.5866]
[1743716903822,0.42648471,116.49,116.46,8.5866]
[1743716904314,0.42648471,116.49,116.46,30.0531]
[1743716905120,0.42648471,116.49,116.46,46.90138991]
[1743716905621,0.14216157,116.49,116.46,46.90138991]
[1743716907896,0.14216157,116.49,116.47,16.84828991]
[1743716908102,0.14216157,116.51,116.48,16.84828991]
[1743716908412,0.14216157,116.53,116.5,8.5836]
[1743716908815,0.42648471,116.53,116.5,30.0428]
[1743716909004,0.14216157,116.53,116.5,30.0428]
[1743716909523,0.42648471,116.53,116.5,46.89108991]
[1743716909718,0.14216157,116.53,116.5,46.89108991]
[1743716909921,0.28432314,116.53,116.5,46.89108991]
[1743716910101,0.42648471,116.53,116.5,46.89108991]
[1743716911538,0.28432314,116.53,116.51,16.84828991]
[1743716912026,0.14216157,116.54,116.51,16.84828991]
[1743716913009,0.28432314,116.55,116.52,16.84828991]
[1743716913208,0.28432314,116.55,116.53,8.5814]
[1743716913815,18.48188991,116.58,116.53,46.88338991]
[1743716914027,0.28432314,116.57,116.53,46.88338991]
[1743716914225,0.42648471,116.57,116.53,46.88338991]
[1743716914710,0.14216157,116.57,116.53,46.88338991]
[1743716914914,0.14216157,116.57,116.54,16.84828991]
[1743716915325,0.14216157,116.57,116.55,8.58]
[1743716916724,16.84828991,116.59,116.55,30.03]
[1743716916910,16.84828991,116.61,116.56,16.84828991]
[1743716917106,0.14216157,116.6,116.55,30.03]
[1743716917325,0.14216157,116.6,116.57,8.5785]
[1743716922229,0.28432314,116.61,116.57,8.5785]
[1743716922535,0.42648471,116.61,116.57,25.42678991]
[1743716922913,0.14216157,116.61,116.58,16.84828991]
[1743716923109,0.28432314,116.62,116.58,16.84828991]
[1743716923320,0.28432314,116.62,116.58,24.30828991]
[1743716923721,0.28432314,116.62,116.59,8.577]
[1743716923932,0.14216157,116.63,116.59,25.42528991]
[1743716925337,0.14216157,116.63,116.6,16.84828991]
[1743716925511,0.14216157,116.63,116.59,25.42528991]
[1743716925714,0.14216157,116.63,116.6,16.84828991]
[1743716925915,0.14216157,116.63,116.6,25.42408991]
[1743716926341,4.81489197,116.65,116.61,16.84828991]
[1743716926914,0.14216157,116.64,116.6,25.42408991]
[1743716927118,0.42648471,116.64,116.6,25.42408991]
[1743716928038,0.14216157,116.64,116.6,25.42408991]
[1743716928737,17.27477462,116.64,116.6,8.5758]
[1743716930048,0.42648471,116.64,116.6,25.42408991]
[1743716930632,0.42648471,116.64,116.6,8.5758]
[1743716930944,0.42648471,116.64,116.6,25.42408991]
[1743716935853,0.42648471,116.64,116.61,16.84828991]
[1743716936032,0.14216157,116.64,116.61,16.84828991]
[1743716936432,0.14216157,116.64,116.62,16.84828991]
[1743716936751,0.14216157,116.64,116.61,16.84828991]
[1743716937153,0.14216157,116.64,116.62,8.5748]
[1743716938754,4.81489197,116.65,116.62,16.84828991]
[1743716939148,4.81489197,116.65,116.62,24.30828991]
[1743716939541,4.81489197,116.65,116.63,16.84828991]
[1743716940542,4.81489197,116.65,116.62,24.30828991]
[1743716941458,4.81489197,116.65,116.63,8.5741]
[1743716945065,4.81489197,116.65,116.63,25.42238991]
[1743716946269,4.81489197,116.65,116.63,8.5741]
[1743716946454,4.81489197,116.65,116.63,25.42238991]
[1743716950466,4.81489197,116.65,116.61,30.0135]
[1743716950643,4.81489197,116.65,116.63,16.84828991]
[1743716950849,0.14216157,116.64,116.62,16.84828991]
[1743716951166,0.14216157,116.64,116.61,46.86178991]
[1743716956674,0.14216157,116.64,116.63,8.5741]
[1743716964661,0.14216157,116.64,116.62,8.5748]
[1743716967072,0.14216157,116.64,116.61,30.0135]
[1743716967251,0.14216157,116.64,116.61,46.86178991]
[1743716975184,0.14216157,116.64,116.62,16.84828991]
[1743716976382,0.14216157,116.64,116.63,8.5741]
[1743716978982,0.14216157,116.64,116.63,25.42238991]
[1743716982894,0.14216157,116.64,116.63,8.5741]
[1743716986797,4.81489197,116.65,116.63,8.5741]
[1743716987676,4.81489197,116.65,116.64,16.84828991]
[1743716988889,4.81489197,116.65,116.64,25.42158991]
[1743717002805,9.197e-05,116.65,116.64,25.42158991]
[1743717009317,9.197e-05,116.65,116.64,32.86158991]
[1743717013722,9.197e-05,116.65,116.64,118.90439841]
[1743717013923,1.5663,116.71,116.67,26.0]
[1743717014115,0.14216157,116.72,116.69,16.84828991]
[1743717014318,0.42648471,116.72,116.69,16.84828991]
[1743717014716,0.14216157,116.72,116.69,16.84828991]
[1743717015228,0.42648471,116.72,116.69,16.84828991]
[1743717015421,0.14216157,116.73,116.69,16.84828991]
[1743717015618,6.2227,116.76,116.71,16.84828991]
[1743717015824,0.14216157,116.75,116.72,16.84828991]
[1743717016931,17.27477462,116.75,116.71,16.84828991]
[1743717017525,17.27477462,116.75,116.7,16.84828991]
[1743717017919,17.27477462,116.75,116.71,8.5682]
[1743717018429,0.14216157,116.75,116.71,46.83708991]
[1743717018608,107.28010034,116.75,116.71,8.5682]
[1743717018928,0.28432314,116.74,116.71,8.5682]
[1743717020014,0.28432314,116.74,116.67,8.5711]
[1743717020015,71.64,116.71,116.67,8.5711]
[1743717020221,0.42648471,116.69,116.67,8.5711]
[1743717021105,0.42648471,116.69,116.66,16.84828991]
[1743717021536,0.28432314,116.69,116.65,16.84828991]
[1743717022925,0.28432314,116.69,116.66,16.84828991]
[1743717023230,0.28432314,116.69,116.67,8.5711]
[1743717025331,0.28432314,116.69,116.66,25.42018991]
[1743717026134,0.28432314,116.69,116.66,8.5719]
[1743717026328,0.28432314,116.69,116.66,25.42018991]
[1743717027141,0.28432314,116.69,116.66,46.84988991]
[1743717027720,0.28432314,116.69,116.66,46.87171691]
[1743717028940,0.28432314,116.69,116.66,30.023427]
[1743717029125,0.28432314,116.69,116.66,46.87171691]
[1743717030718,0.28432314,116.69,116.67,16.84828991]
[1743717031436,0.28432314,116.69,116.66,46.87171691]
[1743717031618,0.14216157,116.7,116.67,16.84828991]
[1743717032117,0.14216157,116.7,116.68,8.5704]
[1743717035142,107.56442348,116.71,116.68,8.5704]
[1743717036128,90.71613357,116.71,116.68,8.5704]
[1743717036739,90.71613357,116.71,116.67,29.998]
[1743717036920,52.06648471,116.71,116.67,46.84628991]
[1743717038444,68.91477462,116.71,116.67,29.998]
[1743717038619,88.91477462,116.71,116.67,8.5711]
[1743717039137,72.06648471,116.71,116.67,25.41938991]
[1743717039348,0.42648471,116.71,116.69,16.84828991]
[1743717039538,0.14216157,116.73,116.69,16.84828991]
[1743717039738,0.42648471,116.73,116.69,16.84828991]
[1743717040120,0.14216157,116.73,116.69,16.84828991]
[1743717040316,0.42648471,116.73,116.69,16.84828991]
[1743717040645,0.14216157,116.73,116.69,16.84828991]
[1743717041037,0.14216157,116.73,116.7,8.5689]
[1743717041238,0.14216157,116.73,116.7,29.9913]
[1743717042246,88.91477462,116.74,116.7,29.9913]
[1743717043047,87.13793877,116.73,116.69,8.5697]
[1743717043346,0.42648471,116.74,116.7,16.84828991]
[1743717044038,0.28432314,116.74,116.7,16.84828991]
[1743717044740,0.42648471,116.74,116.7,16.84828991]
[1743717045048,0.14216157,116.74,116.71,46.83708991]
[1743717050366,0.14216157,116.75,116.71,46.83708991]
[1743717050937,0.14216157,116.76,116.72,16.84828991]
[1743717051934,0.14216157,116.76,116.73,8.5667]
[1743717052543,0.42648471,116.76,116.73,8.5667]
[1743717052745,17.27477462,116.76,116.73,8.5667]
[1743717053660,17.27477462,116.76,116.72,29.9849]
[1743717053955,0.14216157,116.76,116.72,46.83318991]
[1743717055236,16.84828991,116.77,116.72,46.83318991]
[1743717055454,0.14216157,116.76,116.72,46.83318991]
[1743717055846,16.84828991,116.77,116.72,46.83318991]
[1743717056246,0.14216157,116.77,116.73,16.84828991]
[1743717056649,68.48828991,116.79,116.74,29.9811]
[1743717056852,68.48828991,116.79,116.74,46.82938991]
[1743717056853,0.14216157,116.78,116.74,46.82938991]
[1743717057246,0.14216157,116.78,116.74,29.9811]
[1743717057453,0.14216157,116.78,116.74,46.82938991]
[1743717057754,0.14216157,116.78,116.74,29.9811]
[1743717059255,16.84828991,116.79,116.74,46.82938991]
[1743717060552,71.64,116.83,116.77,26.0]
[1743717060755,18.576,116.84,116.81,16.84828991]
[1743717060955,18.576,116.84,116.83,22.89328991]
[1743717061141,18.576,116.84,116.82,16.84828991]
[1743717061337,18.576,116.84,116.81,7.44]
[1743717061538,0.14216157,116.83,116.79,16.84828991]
[1743717061761,51.78216157,116.83,116.79,16.84828991]
[1743717062262,0.14216157,116.84,116.81,16.84828991]
[1743717062565,0.14216157,116.86,116.82,16.84828991]
[1743717063140,0.14216157,116.85,116.81,16.84828991]
[1743717063356,18.71816157,116.85,116.81,16.84828991]
[1743717065565,18.71816157,116.85,116.82,8.5601]
[1743717068256,71.78216157,116.83,116.82,0.021797]
[1743717068461,72.06648471,116.83,116.82,0.021797]
[1743717070851,80.62588471,116.83,116.82,0.021797]
[1743717071750,143.46112348,116.83,116.82,0.021797]
[1743717073268,100.87283357,116.83,116.82,0.021797]
[1743717073568,117.72112348,116.83,116.82,0.021797]
[1743717074269,99.07147462,116.83,116.82,0.021797]
[1743717079266,97.47417462,116.83,116.82,0.021797]
[1743717080573,116.12382348,116.83,116.82,0.021797]
[1743717082569,141.86382348,116.83,116.82,0.021797]
[1743717086354,0.14216157,116.83,116.82,0.021797]
[1743717086556,0.14216157,116.84,116.82,0.021797]
[1743717086970,18.71816157,116.84,116.82,0.021797]
[1743717089777,27.27696157,116.84,116.82,0.021797]
[1743717089978,18.71816157,116.84,116.82,0.021797]
[1743717091281,17.71816157,116.84,116.82,0.021797]
[1743717091876,51.92432314,116.83,116.82,0.021797]
[1743717092076,107.42226191,116.83,116.82,0.021797]
[1743717092887,133.16226191,116.83,116.82,0.021797]
[1743717093355,141.86382348,116.83,116.82,0.021797]
[1743717102266,149.30382348,116.83,116.82,0.021797]
[1743717114170,97.66382348,116.83,116.82,0.021797]
[1743717115097,71.92382348,116.83,116.82,0.021797]
[1743717125796,55.07553357,116.83,116.82,0.021797]
[1743717127412,71.92382348,116.83,116.82,0.021797]
[1743717128411,55.07553357,116.83,116.82,0.021797]
[1743717128792,17.71816157,116.84,116.82,16.87008691]
[1743717128993,0.14216157,116.86,116.83,16.84828991]
[1743717129313,0.14216157,116.86,116.84,16.84828991]
[1743717129814,0.42648471,116.86,116.83,16.84828991]
[1743717129991,0.14216157,116.86,116.83,16.84828991]
[1743717130188,0.42648471,116.86,116.83,16.84828991]
[1743717130700,0.14216157,116.86,116.83,16.84828991]
[1743717130892,0.28432314,116.86,116.84,8.5587]
[1743717131094,0.42648471,116.86,116.84,8.5587]
[1743717133001,17.71816157,116.85,116.84,8.5587]
[1743717133511,17.71816157,116.85,116.82,46.82968691]
[1743717133812,69.35816157,116.85,116.82,46.82968691]
[1743717134398,69.35816157,116.85,116.84,16.84828991]
[1743717134589,17.71816157,116.85,116.84,42.84828991]
[1743717134789,17.71816157,116.85,116.84,16.84828991]
[1743717135591,17.71816157,116.85,116.84,25.40698991]
[1743717136108,17.71816157,116.85,116.84,33.50978991]
[1743717136414,6.157e-05,116.85,116.84,33.50978991]
[1743717136615,51.78216157,116.89,116.84,54.90648991]
[1743717136815,51.78216157,116.89,116.86,16.84828991]
[1743717138315,51.78216157,116.89,116.87,8.5565]
[1743717139215,68.48828991,116.91,116.87,8.5565]
[1743717139414,0.14216157,116.9,116.87,8.5565]
[1743717139723,0.42648471,116.9,116.87,8.5565]
[1743717139910,0.14216157,116.9,116.87,8.5565]
[1743717140325,0.42648471,116.9,116.87,8.5565]
[1743717141592,51.64,116.91,116.87,46.79598991]
[1743717141792,68.63045148,116.93,116.88,16.84828991]
[1743717142006,68.63045148,116.93,116.88,23.15228991]
[1743717142216,0.28432314,116.92,116.88,24.69858991]
[1743717143897,0.28432314,116.92,116.89,8.555]
[1743717144899,0.14216157,116.91,116.88,16.4057]
[1743717145106,0.28432314,116.9,116.88,16.4057]
[1743717146434,0.28432314,116.9,116.88,14.8594]
[1743717147939,0.28432314,116.9,116.88,31.70768991]
[1743717148121,51.78216157,116.91,116.88,31.70768991]
[1743717148420,51.92432314,116.92,116.88,31.70768991]
[1743717148630,51.92432314,116.92,116.89,16.84828991]
[1743717149423,51.92432314,116.92,116.88,31.70768991]
[1743717150024,4.27978379,116.96,116.88,31.70768991]
[1743717150025,51.64,116.96,116.91,16.84828991]
[1743717150217,28.5487,116.98,116.94,8.5513]
[1743717150218,20.0,116.98,116.94,8.5513]
[1743717150441,16.84828991,116.99,116.94,25.39958991]
[1743717150730,25.39638991,116.99,116.94,8.5513]
[1743717151034,17.27477462,116.98,116.94,8.5513]
[1743717151611,16.99045148,116.98,116.94,8.5513]
[1743717152336,25.53895148,116.98,116.94,8.5513]
[1743717153430,0.14216157,116.96,116.93,6.304]
[1743717154112,0.14216157,116.96,116.93,14.8559]
[1743717156330,8.69216157,116.96,116.93,6.304]
[1743717156529,0.14216157,116.96,116.93,14.856]
[1743717161151,51.78216157,116.96,116.93,14.856]
[1743717161943,51.78216157,116.96,116.93,8.552]
[1743717170352,51.78216157,116.96,116.93,8.573777]